[Event "Late-Titled-Tuesday-Blitz-June-04-2024"]
[Site "Chess.com"]
[Date "2024.06.04"]
[Round "8"]
[White "Onthequiet"]
[Black "jinxy2009"]
[Result "0-1"]
[WhiteElo "2401"]
[BlackElo "2290"]
[TimeControl "180+1"]
[EndTime "15:27:15 PDT"]
[Termination "jinxy2009 won on time"]

1. e4 {[%clk 0:02:59.3]} 1... c6 {[%clk 0:02:59.5]} 2. d4 {[%clk 0:02:58.8]}
2... d5 {[%clk 0:02:59.5]} 3. exd5 {[%clk 0:02:59]} 3... cxd5 {[%clk 0:02:58.8]}
4. Bd3 {[%clk 0:02:59.4]} 4... Nc6 {[%clk 0:02:58.4]} 5. c3 {[%clk 0:02:59.6]}
5... Nf6 {[%clk 0:02:58.6]} 6. Bf4 {[%clk 0:02:59.9]} 6... Bg4 {[%clk
0:02:58.7]} 7. Qb3 {[%clk 0:02:59.6]} 7... e5 {[%clk 0:02:58.9]} 8. dxe5 {[%clk
0:02:57]} 8... Nh5 {[%clk 0:02:59.2]} 9. Be3 {[%clk 0:02:52]} 9... Nxe5 {[%clk
0:02:56.3]} 10. Bb5+ {[%clk 0:02:50.7]} 10... Nc6 {[%clk 0:02:50.5]} 11. Nd2
{[%clk 0:02:45.4]} 11... Be7 {[%clk 0:02:42.1]} 12. Ngf3 {[%clk 0:02:45.5]}
12... O-O {[%clk 0:02:42.1]} 13. O-O {[%clk 0:02:26.7]} 13... a6 {[%clk
0:02:36.2]} 14. Bd3 {[%clk 0:02:24.1]} 14... Be6 {[%clk 0:02:18.5]} 15. Qc2
{[%clk 0:02:22.3]} 15... Nf6 {[%clk 0:02:06.8]} 16. Rad1 {[%clk 0:02:15]} 16...
Rc8 {[%clk 0:02:00.2]} 17. Qb1 {[%clk 0:02:13.3]} 17... h6 {[%clk 0:01:34.4]}
18. h3 {[%clk 0:02:10.8]} 18... Qd7 {[%clk 0:01:09.2]} 19. Rfe1 {[%clk
0:02:06.5]} 19... Bd6 {[%clk 0:01:09]} 20. Nb3 {[%clk 0:01:45]} 20... Bxh3
{[%clk 0:00:53.9]} 21. gxh3 {[%clk 0:01:03.3]} 21... Qxh3 {[%clk 0:00:51.5]} 22.
Bf5 {[%clk 0:00:57.8]} 22... Qxf3 {[%clk 0:00:35.3]} 23. Bxc8 {[%clk 0:00:57.4]}
23... Rxc8 {[%clk 0:00:35.3]} 24. Nd4 {[%clk 0:00:51.4]} 24... Nxd4 {[%clk
0:00:33]} 25. Rxd4 {[%clk 0:00:50.3]} 25... Ng4 {[%clk 0:00:19.3]} 26. Qd3
{[%clk 0:00:24.5]} 26... Re8 {[%clk 0:00:10.5]} 27. Rxg4 {[%clk 0:00:17.1]}
27... Qxg4+ {[%clk 0:00:10.3]} 28. Kf1 {[%clk 0:00:17.7]} 28... Qh3+ {[%clk
0:00:08.5]} 29. Ke2 {[%clk 0:00:17.6]} 29... Bf4 {[%clk 0:00:08.2]} 30. Kd2
{[%clk 0:00:14.3]} 30... Bxe3+ {[%clk 0:00:08.4]} 31. fxe3 {[%clk 0:00:15]}
31... Qg2+ {[%clk 0:00:07.9]} 32. Re2 {[%clk 0:00:15.3]} 32... Qe4 {[%clk
0:00:08.2]} 33. Rf2 {[%clk 0:00:12.1]} 33... Qxd3+ {[%clk 0:00:08.2]} 34. Kxd3
{[%clk 0:00:12.2]} 34... Re4 {[%clk 0:00:08.4]} 35. Rf5 {[%clk 0:00:12.1]} 35...
g6 {[%clk 0:00:08]} 36. Rxd5 {[%clk 0:00:12.1]} 36... Re7 {[%clk 0:00:08.2]} 37.
e4 {[%clk 0:00:12]} 37... Kg7 {[%clk 0:00:08.6]} 38. Kd4 {[%clk 0:00:12.2]}
38... h5 {[%clk 0:00:09]} 39. Rg5 {[%clk 0:00:11.3]} 39... Kf6 {[%clk 0:00:09]}
40. Rg1 {[%clk 0:00:10.9]} 40... g5 {[%clk 0:00:09.4]} 41. c4 {[%clk 0:00:10.3]}
41... g4 {[%clk 0:00:09]} 42. c5 {[%clk 0:00:10.1]} 42... Kg5 {[%clk 0:00:09.3]}
43. Rf1 {[%clk 0:00:10]} 43... h4 {[%clk 0:00:09.6]} 44. Rf5+ {[%clk 0:00:10.2]}
44... Kg6 {[%clk 0:00:10.1]} 45. Ke3 {[%clk 0:00:09.1]} 45... f6 {[%clk
0:00:07.8]} 46. Kf4 {[%clk 0:00:08.4]} 46... g3 {[%clk 0:00:08.2]} 47. Rd5
{[%clk 0:00:07.9]} 47... Re5 {[%clk 0:00:07.4]} 48. Rd8 {[%clk 0:00:06.9]} 48...
Rxc5 {[%clk 0:00:07.3]} 49. Rg8+ {[%clk 0:00:05.4]} 49... Kf7 {[%clk 0:00:07.5]}
50. Rh8 {[%clk 0:00:05.6]} 50... g2 {[%clk 0:00:07.9]} 51. Rh7+ {[%clk
0:00:04.4]} 51... Kg8 {[%clk 0:00:07.7]} 52. Rxh4 {[%clk 0:00:03.1]} 52... Rg5
{[%clk 0:00:07.4]} 0-1

[Event "Late-Titled-Tuesday-Blitz-June-04-2024"]
[Site "Chess.com"]
[Date "2024.06.04"]
[Round "8"]
[White "rhwr"]
[Black "zacachess"]
[Result "0-1"]
[WhiteElo "2279"]
[BlackElo "2507"]
[TimeControl "180+1"]
[EndTime "15:27:16 PDT"]
[Termination "zacachess won on time"]

1. e4 {[%clk 0:03:00.9]} 1... c5 {[%clk 0:02:59.7]} 2. Nf3 {[%clk 0:03:00.4]}
2... d6 {[%clk 0:03:00]} 3. d4 {[%clk 0:03:00.7]} 3... cxd4 {[%clk 0:03:00.9]}
4. Nxd4 {[%clk 0:03:01.1]} 4... Nf6 {[%clk 0:03:01.5]} 5. Nc3 {[%clk 0:03:00.4]}
5... Nc6 {[%clk 0:03:01.8]} 6. Be2 {[%clk 0:03:00.3]} 6... e5 {[%clk 0:03:01.6]}
7. Nb3 {[%clk 0:02:59.8]} 7... Be7 {[%clk 0:03:00.3]} 8. O-O {[%clk 0:03:00.2]}
8... O-O {[%clk 0:03:00.6]} 9. Be3 {[%clk 0:03:00.5]} 9... Be6 {[%clk
0:02:59.6]} 10. f4 {[%clk 0:02:59.9]} 10... a5 {[%clk 0:02:56.5]} 11. f5 {[%clk
0:02:58.4]} 11... Bd7 {[%clk 0:02:55.1]} 12. a4 {[%clk 0:02:56.5]} 12... Nb4
{[%clk 0:02:54.5]} 13. Nd2 {[%clk 0:02:44.6]} 13... Bc6 {[%clk 0:02:52.6]} 14.
Bf3 {[%clk 0:02:40.3]} 14... d5 {[%clk 0:02:51.1]} 15. exd5 {[%clk 0:02:39.1]}
15... Nbxd5 {[%clk 0:02:51.1]} 16. Nxd5 {[%clk 0:02:36.8]} 16... Nxd5 {[%clk
0:02:50.4]} 17. Bf2 {[%clk 0:02:34]} 17... Qc7 {[%clk 0:02:30.7]} 18. c3 {[%clk
0:02:08]} 18... Rad8 {[%clk 0:02:25.5]} 19. Qc2 {[%clk 0:02:05.9]} 19... Nf4
{[%clk 0:02:12.5]} 20. Ne4 {[%clk 0:02:02.9]} 20... f6 {[%clk 0:01:57.6]} 21.
Rfd1 {[%clk 0:01:56.2]} 21... Rxd1+ {[%clk 0:01:44.9]} 22. Rxd1 {[%clk
0:01:55.2]} 22... Rd8 {[%clk 0:01:45.2]} 23. Qb3+ {[%clk 0:01:44.3]} 23... Kf8
{[%clk 0:01:40.5]} 24. Rxd8+ {[%clk 0:01:38.8]} 24... Qxd8 {[%clk 0:01:41.4]}
25. g3 {[%clk 0:01:22.3]} 25... Nd3 {[%clk 0:01:12.1]} 26. Bb6 {[%clk
0:01:06.9]} 26... Qd7 {[%clk 0:01:12.1]} 27. g4 {[%clk 0:00:46.5]} 27... Ne1
{[%clk 0:01:12.1]} 28. Bh1 {[%clk 0:00:42.3]} 28... Qd3 {[%clk 0:01:08.4]} 29.
Qe6 {[%clk 0:00:20.8]} 29... Qd1 {[%clk 0:00:36.3]} 30. Qc8+ {[%clk 0:00:13.4]}
30... Be8 {[%clk 0:00:36]} 31. Nf2 {[%clk 0:00:13.8]} 31... Qe2 {[%clk
0:00:23.7]} 32. h3 {[%clk 0:00:10.5]} 32... Nf3+ {[%clk 0:00:21.4]} 33. Bxf3
{[%clk 0:00:10.2]} 33... Qxf3 {[%clk 0:00:22.3]} 34. Qc4 {[%clk 0:00:09.3]}
34... Bc6 {[%clk 0:00:20.7]} 35. Kf1 {[%clk 0:00:08.8]} 35... h5 {[%clk
0:00:18.8]} 36. gxh5 {[%clk 0:00:06.2]} 36... Qxf5 {[%clk 0:00:18.9]} 37. Bxa5
{[%clk 0:00:02.4]} 37... Qb1+ {[%clk 0:00:19]} 38. Ke2 {[%clk 0:00:01.7]} 38...
Qxb2+ {[%clk 0:00:18.8]} 39. Ke3 {[%clk 0:00:01.2]} 39... Qc1+ {[%clk
0:00:18.6]} 40. Ke2 {[%clk 0:00:01.3]} 40... Qc2+ {[%clk 0:00:18.6]} 41. Ke3
{[%clk 0:00:01.7]} 41... Qc1+ {[%clk 0:00:17]} 42. Ke2 {[%clk 0:00:01.4]} 42...
f5 {[%clk 0:00:17.9]} 43. Nd3 {[%clk 0:00:01.4]} 43... Qc2+ {[%clk 0:00:17.3]}
44. Ke3 {[%clk 0:00:02.3]} 44... f4+ {[%clk 0:00:17.3]} 45. Nxf4 {[%clk
0:00:02.2]} 45... exf4+ {[%clk 0:00:16.9]} 46. Qxf4+ {[%clk 0:00:03.1]} 46...
Ke8 {[%clk 0:00:16.7]} 47. Qb8+ {[%clk 0:00:04]} 47... Kf7 {[%clk 0:00:15.5]}
48. Qf4+ {[%clk 0:00:03.8]} 48... Ke6 {[%clk 0:00:15]} 49. Qc4+ {[%clk
0:00:03.1]} 49... Bd5 {[%clk 0:00:14.7]} 50. Qg4+ {[%clk 0:00:03.5]} 50... Kf7
{[%clk 0:00:11.6]} 51. Qf4+ {[%clk 0:00:01.6]} 51... Bf6 {[%clk 0:00:11.4]} 52.
Qc7+ {[%clk 0:00:01.2]} 52... Kg8 {[%clk 0:00:11.1]} 0-1

[Event "Late-Titled-Tuesday-Blitz-June-04-2024"]
[Site "Chess.com"]
[Date "2024.06.04"]
[Round "8"]
[White "ChessQueen"]
[Black "LeninGuerra"]
[Result "1/2-1/2"]
[WhiteElo "2733"]
[BlackElo "2563"]
[TimeControl "180+1"]
[EndTime "15:27:18 PDT"]
[Termination "Game drawn by repetition"]

1. e4 {[%clk 0:03:00.9]} 1... c5 {[%clk 0:02:52.3]} 2. d4 {[%clk 0:03:00.5]}
2... cxd4 {[%clk 0:02:52.2]} 3. Qxd4 {[%clk 0:03:01.4]} 3... Nc6 {[%clk
0:02:51.9]} 4. Qd3 {[%clk 0:03:01.9]} 4... e6 {[%clk 0:02:52.4]} 5. Nc3 {[%clk
0:03:01.7]} 5... Nf6 {[%clk 0:02:52.6]} 6. Bf4 {[%clk 0:03:01.3]} 6... Bb4
{[%clk 0:02:46.2]} 7. O-O-O {[%clk 0:03:01.1]} 7... O-O {[%clk 0:02:38.3]} 8.
Nge2 {[%clk 0:02:59.7]} 8... Qa5 {[%clk 0:02:17.2]} 9. Kb1 {[%clk 0:02:59.9]}
9... Ne5 {[%clk 0:02:13.1]} 10. Bxe5 {[%clk 0:02:50.6]} 10... Qxe5 {[%clk
0:02:14]} 11. f4 {[%clk 0:02:50.8]} 11... Qa5 {[%clk 0:02:09.6]} 12. e5 {[%clk
0:02:49.1]} 12... Ne8 {[%clk 0:02:09.6]} 13. Ne4 {[%clk 0:02:17.2]} 13... f5
{[%clk 0:02:09.1]} 14. Nd6 {[%clk 0:02:10.8]} 14... Bxd6 {[%clk 0:02:04.2]} 15.
exd6 {[%clk 0:02:11.7]} 15... b6 {[%clk 0:02:01.1]} 16. g4 {[%clk 0:02:05.8]}
16... Bb7 {[%clk 0:01:58.9]} 17. Rg1 {[%clk 0:02:04.7]} 17... Be4 {[%clk
0:01:59]} 18. Qb3 {[%clk 0:01:54.6]} 18... Rc8 {[%clk 0:01:56.5]} 19. Nc3 {[%clk
0:01:51.9]} 19... Bf3 {[%clk 0:01:35.9]} 20. gxf5 {[%clk 0:01:51.9]} 20... Rxf5
{[%clk 0:01:31.6]} 21. Re1 {[%clk 0:01:33]} 21... Nxd6 {[%clk 0:01:12.7]} 22.
Bd3 {[%clk 0:01:25]} 22... Rf7 {[%clk 0:01:01.4]} 23. Rg3 {[%clk 0:01:03]} 23...
Bd5 {[%clk 0:01:01.1]} 24. Qa4 {[%clk 0:00:45.2]} 24... Qxa4 {[%clk 0:01:00.1]}
25. Nxa4 {[%clk 0:00:46.1]} 25... Rxf4 {[%clk 0:00:58.7]} 26. Nc3 {[%clk
0:00:46.2]} 26... Bc4 {[%clk 0:00:55.1]} 27. Rd1 {[%clk 0:00:43.3]} 27... Rc7
{[%clk 0:00:39.9]} 28. a4 {[%clk 0:00:33.2]} 28... Nf7 {[%clk 0:00:35.6]} 29.
Rdg1 {[%clk 0:00:25.6]} 29... g6 {[%clk 0:00:35.5]} 30. Ne2 {[%clk 0:00:23.7]}
30... Rf6 {[%clk 0:00:34.3]} 31. Nd4 {[%clk 0:00:23]} 31... Bxd3 {[%clk
0:00:33.9]} 32. Rxd3 {[%clk 0:00:23.9]} 32... Ne5 {[%clk 0:00:30.8]} 33. Rdd1
{[%clk 0:00:23.7]} 33... a6 {[%clk 0:00:28.3]} 34. Rg3 {[%clk 0:00:22.7]} 34...
Kf7 {[%clk 0:00:26.9]} 35. Rb3 {[%clk 0:00:22.7]} 35... Nc4 {[%clk 0:00:25.5]}
36. Rc3 {[%clk 0:00:21.7]} 36... d5 {[%clk 0:00:15.3]} 37. Kc1 {[%clk
0:00:22.2]} 37... Rc5 {[%clk 0:00:14.2]} 38. Rh3 {[%clk 0:00:20.6]} 38... h5
{[%clk 0:00:13.9]} 39. Nb3 {[%clk 0:00:20.8]} 39... Rc8 {[%clk 0:00:12]} 40. Nd4
{[%clk 0:00:21]} 40... Ne5 {[%clk 0:00:12]} 41. Re1 {[%clk 0:00:20.6]} 41... Ng4
{[%clk 0:00:12.4]} 42. Rb3 {[%clk 0:00:19.6]} 42... e5 {[%clk 0:00:11.4]} 43.
Nf3 {[%clk 0:00:19.5]} 43... e4 {[%clk 0:00:11.9]} 44. Ng5+ {[%clk 0:00:18.6]}
44... Kg7 {[%clk 0:00:12.2]} 45. h3 {[%clk 0:00:17.6]} 45... Ne5 {[%clk
0:00:11.2]} 46. Rd1 {[%clk 0:00:18.3]} 46... Rc5 {[%clk 0:00:10]} 47. Rg3 {[%clk
0:00:16.7]} 47... Nf3 {[%clk 0:00:10]} 48. b4 {[%clk 0:00:11.4]} 48... Rc4
{[%clk 0:00:10]} 49. Rxd5 {[%clk 0:00:11.2]} 49... Nxg5 {[%clk 0:00:08.5]} 50.
Rdxg5 {[%clk 0:00:10.6]} 50... Rxb4 {[%clk 0:00:08.8]} 51. Rxh5 {[%clk
0:00:10.8]} 51... Rxa4 {[%clk 0:00:08.8]} 52. Re5 {[%clk 0:00:10.5]} 52... Rd4
{[%clk 0:00:08.6]} 53. Re7+ {[%clk 0:00:10.1]} 53... Kh6 {[%clk 0:00:08.8]} 54.
Rg4 {[%clk 0:00:10.2]} 54... a5 {[%clk 0:00:09]} 55. Re8 {[%clk 0:00:10.2]}
55... Kg7 {[%clk 0:00:05.4]} 56. Re7+ {[%clk 0:00:09.9]} 56... Rf7 {[%clk
0:00:05.5]} 57. Re6 {[%clk 0:00:10.3]} 57... Rf6 {[%clk 0:00:05.6]} 58. Re7+
{[%clk 0:00:10.5]} 58... Rf7 {[%clk 0:00:06.1]} 59. Re6 {[%clk 0:00:10.8]} 59...
Rf6 {[%clk 0:00:06.5]} 60. Re7+ {[%clk 0:00:11.3]} 1/2-1/2

[Event "Late-Titled-Tuesday-Blitz-June-04-2024"]
[Site "Chess.com"]
[Date "2024.06.04"]
[Round "8"]
[White "annasargsyan_m"]
[Black "picturesquecheck"]
[Result "1/2-1/2"]
[WhiteElo "2585"]
[BlackElo "2460"]
[TimeControl "180+1"]
[EndTime "15:27:19 PDT"]
[Termination "Game drawn - insufficient material"]

1. d4 {[%clk 0:03:00.9]} 1... d6 {[%clk 0:03:00.9]} 2. c4 {[%clk 0:02:59.5]}
2... g6 {[%clk 0:02:57.5]} 3. g3 {[%clk 0:02:59]} 3... Bg7 {[%clk 0:02:57.4]} 4.
Bg2 {[%clk 0:02:59.7]} 4... Nf6 {[%clk 0:02:55.4]} 5. Nc3 {[%clk 0:02:59.7]}
5... O-O {[%clk 0:02:56.3]} 6. Nf3 {[%clk 0:02:59.5]} 6... Nc6 {[%clk
0:02:56.3]} 7. O-O {[%clk 0:02:59.8]} 7... Bg4 {[%clk 0:02:56.1]} 8. d5 {[%clk
0:02:45.6]} 8... Bxf3 {[%clk 0:02:55.5]} 9. exf3 {[%clk 0:02:45.1]} 9... Na5
{[%clk 0:02:55.4]} 10. Qe2 {[%clk 0:02:45.1]} 10... c5 {[%clk 0:02:54.1]} 11. f4
{[%clk 0:02:41.6]} 11... Re8 {[%clk 0:02:53.6]} 12. Bd2 {[%clk 0:02:37.6]} 12...
Rb8 {[%clk 0:02:52.8]} 13. Rae1 {[%clk 0:02:31.5]} 13... a6 {[%clk 0:02:52.4]}
14. Qd3 {[%clk 0:02:31.1]} 14... Qd7 {[%clk 0:02:48.5]} 15. b3 {[%clk
0:02:17.3]} 15... b5 {[%clk 0:02:45.8]} 16. h3 {[%clk 0:02:01.2]} 16... bxc4
{[%clk 0:02:45.1]} 17. bxc4 {[%clk 0:02:01.6]} 17... Rb2 {[%clk 0:02:43.6]} 18.
Rb1 {[%clk 0:01:47.6]} 18... Reb8 {[%clk 0:02:40]} 19. g4 {[%clk 0:01:47.5]}
19... h5 {[%clk 0:02:30.4]} 20. g5 {[%clk 0:01:43.9]} 20... Ne8 {[%clk
0:02:27.1]} 21. Be4 {[%clk 0:01:43.6]} 21... Bxc3 {[%clk 0:01:52.3]} 22. Bxc3
{[%clk 0:01:40.9]} 22... Rxb1 {[%clk 0:01:51.5]} 23. Rxb1 {[%clk 0:01:40.4]}
23... Rxb1+ {[%clk 0:01:51.2]} 24. Qxb1 {[%clk 0:01:40.9]} 24... Qxh3 {[%clk
0:01:50.5]} 25. Bxa5 {[%clk 0:01:39.1]} 25... Qg4+ {[%clk 0:01:45.8]} 26. Kf1
{[%clk 0:01:02.8]} 26... Qxf4 {[%clk 0:01:45]} 27. Qb8 {[%clk 0:01:02.5]} 27...
Kf8 {[%clk 0:01:36.1]} 28. Qb1 {[%clk 0:00:58.3]} 28... Qxg5 {[%clk 0:01:32.8]}
29. Qd3 {[%clk 0:00:58.1]} 29... h4 {[%clk 0:01:28.6]} 30. Bd2 {[%clk 0:00:58]}
30... Qe5 {[%clk 0:01:15.3]} 31. Bc3 {[%clk 0:00:48.2]} 31... Qg5 {[%clk
0:01:05.5]} 32. Bd2 {[%clk 0:00:34.2]} 32... Qe5 {[%clk 0:00:58.4]} 33. Kg2
{[%clk 0:00:34.8]} 33... Nf6 {[%clk 0:00:55.9]} 34. Bf3 {[%clk 0:00:34.6]} 34...
g5 {[%clk 0:00:48.9]} 35. Bc3 {[%clk 0:00:34]} 35... Qf4 {[%clk 0:00:44.6]} 36.
Bxf6 {[%clk 0:00:32.8]} 36... g4 {[%clk 0:00:17.6]} 37. Bxe7+ {[%clk 0:00:19.9]}
37... Kxe7 {[%clk 0:00:18.5]} 38. Qe4+ {[%clk 0:00:19.7]} 38... Qxe4 {[%clk
0:00:18.6]} 39. Bxe4 {[%clk 0:00:20.6]} 39... Kf6 {[%clk 0:00:18.7]} 40. f3
{[%clk 0:00:20.6]} 40... Ke5 {[%clk 0:00:18.4]} 41. Bh7 {[%clk 0:00:12.4]} 41...
f5 {[%clk 0:00:14.9]} 42. fxg4 {[%clk 0:00:11.2]} 42... fxg4 {[%clk 0:00:15.8]}
43. Bd3 {[%clk 0:00:11]} 43... Kd4 {[%clk 0:00:15.6]} 44. Be2 {[%clk 0:00:11.6]}
44... g3 {[%clk 0:00:15]} 45. Kh3 {[%clk 0:00:11.6]} 45... Kc3 {[%clk
0:00:15.3]} 46. Bf1 {[%clk 0:00:11.5]} 46... a5 {[%clk 0:00:14.7]} 47. Kxh4
{[%clk 0:00:10.2]} 47... g2 {[%clk 0:00:15]} 48. Bxg2 {[%clk 0:00:09.6]} 48...
Kxc4 {[%clk 0:00:15.9]} 49. Kg5 {[%clk 0:00:10]} 49... Kd4 {[%clk 0:00:15.2]}
50. Kf6 {[%clk 0:00:10.2]} 50... c4 {[%clk 0:00:15.7]} 51. Kf5 {[%clk
0:00:04.9]} 51... c3 {[%clk 0:00:15.2]} 52. Be4 {[%clk 0:00:05.5]} 52... a4
{[%clk 0:00:10.8]} 53. Bc2 {[%clk 0:00:04.9]} 53... Kxd5 {[%clk 0:00:07.3]} 54.
Bxa4 {[%clk 0:00:05.1]} 54... Kc5 {[%clk 0:00:07.1]} 55. Ke4 {[%clk 0:00:05]}
55... Kb4 {[%clk 0:00:06.1]} 56. Bc2 {[%clk 0:00:03.1]} 56... Ka3 {[%clk
0:00:04.3]} 57. Bb3 {[%clk 0:00:03.8]} 57... c2 {[%clk 0:00:03.6]} 58. Bxc2
{[%clk 0:00:03]} 58... Kxa2 {[%clk 0:00:04.5]} 59. Kd5 {[%clk 0:00:02.6]} 59...
Kb2 {[%clk 0:00:05.4]} 60. Kxd6 {[%clk 0:00:03.2]} 1/2-1/2

[Event "Late-Titled-Tuesday-Blitz-June-04-2024"]
[Site "Chess.com"]
[Date "2024.06.04"]
[Round "8"]
[White "pirulillo"]
[Black "StoreySniper"]
[Result "1-0"]
[WhiteElo "2386"]
[BlackElo "2464"]
[TimeControl "180+1"]
[EndTime "15:27:19 PDT"]
[Termination "pirulillo won on time"]

1. e4 {[%clk 0:03:00.9]} 1... g6 {[%clk 0:02:59.2]} 2. d4 {[%clk 0:03:00.1]}
2... Bg7 {[%clk 0:02:59.8]} 3. Nc3 {[%clk 0:02:59.1]} 3... c5 {[%clk 0:03:00.4]}
4. Nf3 {[%clk 0:02:58.6]} 4... Qa5 {[%clk 0:02:59.7]} 5. d5 {[%clk 0:02:52.3]}
5... d6 {[%clk 0:02:55.4]} 6. Bd2 {[%clk 0:02:48.5]} 6... Nf6 {[%clk 0:02:54.5]}
7. a4 {[%clk 0:02:44.8]} 7... O-O {[%clk 0:02:53.3]} 8. Bd3 {[%clk 0:02:41.2]}
8... Qc7 {[%clk 0:02:51.2]} 9. O-O {[%clk 0:02:38.7]} 9... b6 {[%clk 0:02:50.7]}
10. Qe2 {[%clk 0:02:37.1]} 10... Bg4 {[%clk 0:02:46]} 11. h3 {[%clk 0:02:35.6]}
11... Bxf3 {[%clk 0:02:45.8]} 12. Qxf3 {[%clk 0:02:36.5]} 12... Nbd7 {[%clk
0:02:46.1]} 13. Qe2 {[%clk 0:02:34.8]} 13... Ne5 {[%clk 0:02:43.8]} 14. Ba6
{[%clk 0:02:33.8]} 14... Ned7 {[%clk 0:02:28.8]} 15. f4 {[%clk 0:02:28.9]} 15...
Ne8 {[%clk 0:02:27.2]} 16. Bb5 {[%clk 0:02:25.4]} 16... Qd8 {[%clk 0:02:20.1]}
17. Bc6 {[%clk 0:02:23.8]} 17... Rb8 {[%clk 0:02:19.8]} 18. Qa6 {[%clk
0:02:20.3]} 18... Bd4+ {[%clk 0:01:53.4]} 19. Kh1 {[%clk 0:02:19.5]} 19... Ndf6
{[%clk 0:01:51.3]} 20. Qxa7 {[%clk 0:02:14.4]} 20... Bxc3 {[%clk 0:01:48.5]} 21.
bxc3 {[%clk 0:01:59]} 21... Nxe4 {[%clk 0:01:48.7]} 22. Be1 {[%clk 0:01:58.7]}
22... Nc7 {[%clk 0:01:26.9]} 23. Rb1 {[%clk 0:01:54.2]} 23... f5 {[%clk
0:00:52.6]} 24. Rxb6 {[%clk 0:01:49.3]} 24... Rxb6 {[%clk 0:00:51.9]} 25. Qxb6
{[%clk 0:01:50.2]} 25... Qb8 {[%clk 0:00:48.7]} 26. a5 {[%clk 0:01:48.6]} 26...
c4 {[%clk 0:00:35.8]} 27. Bh4 {[%clk 0:01:39.9]} 27... Kf7 {[%clk 0:00:33]} 28.
Bd7 {[%clk 0:01:24.4]} 28... Nxc3 {[%clk 0:00:27.5]} 29. Be6+ {[%clk 0:01:18.2]}
29... Nxe6 {[%clk 0:00:21]} 30. dxe6+ {[%clk 0:01:19.1]} 30... Kxe6 {[%clk
0:00:20.6]} 31. Qe3+ {[%clk 0:01:18.8]} 31... Ne4 {[%clk 0:00:21.1]} 32. a6
{[%clk 0:01:16.3]} 32... Qb2 {[%clk 0:00:17]} 33. a7 {[%clk 0:01:14]} 33... Ra8
{[%clk 0:00:16.5]} 34. g4 {[%clk 0:01:11.6]} 34... Qa2 {[%clk 0:00:16]} 35.
gxf5+ {[%clk 0:01:10.4]} 35... gxf5 {[%clk 0:00:16.2]} 36. Qd4 {[%clk
0:01:08.7]} 36... Qxa7 {[%clk 0:00:15.1]} 37. Qxc4+ {[%clk 0:01:08.8]} 37... d5
{[%clk 0:00:14.8]} 38. Qc6+ {[%clk 0:01:08.3]} 38... Kf7 {[%clk 0:00:14]} 39.
Qh6 {[%clk 0:01:08]} 39... Ke8 {[%clk 0:00:12.2]} 40. Qxh7 {[%clk 0:01:07.4]}
40... Kd7 {[%clk 0:00:12.8]} 41. Qxf5+ {[%clk 0:01:06.6]} 41... Kc6 {[%clk
0:00:11]} 42. c4 {[%clk 0:01:05.2]} 42... Qc5 {[%clk 0:00:10.2]} 43. Rd1 {[%clk
0:01:02.6]} 43... Nf6 {[%clk 0:00:09.5]} 44. Bxf6 {[%clk 0:01:01.1]} 44... exf6
{[%clk 0:00:10]} 45. Qxd5+ {[%clk 0:01:00.8]} 45... Qxd5+ {[%clk 0:00:09.5]} 46.
Rxd5 {[%clk 0:00:59.5]} 46... Ra4 {[%clk 0:00:09.5]} 47. Rf5 {[%clk 0:00:58.8]}
47... Rxc4 {[%clk 0:00:08.4]} 48. Rxf6+ {[%clk 0:00:59.2]} 48... Kd7 {[%clk
0:00:09.3]} 49. Kg2 {[%clk 0:00:58.8]} 49... Ke7 {[%clk 0:00:09.8]} 50. Rf5
{[%clk 0:00:58.6]} 50... Ke6 {[%clk 0:00:10.1]} 51. Re5+ {[%clk 0:00:53.4]}
51... Kf6 {[%clk 0:00:10.7]} 52. Kg3 {[%clk 0:00:53.7]} 52... Kg6 {[%clk
0:00:10.3]} 53. Kg4 {[%clk 0:00:53.4]} 53... Kg7 {[%clk 0:00:10]} 54. Re6 {[%clk
0:00:53.2]} 54... Rc5 {[%clk 0:00:10]} 55. Ra6 {[%clk 0:00:52]} 55... Kf7 {[%clk
0:00:09.8]} 56. h4 {[%clk 0:00:52.2]} 56... Kg7 {[%clk 0:00:09.9]} 57. h5 {[%clk
0:00:52.1]} 57... Kf7 {[%clk 0:00:10.2]} 58. Kh4 {[%clk 0:00:46.8]} 58... Kg7
{[%clk 0:00:10.2]} 59. Kh3 {[%clk 0:00:46.8]} 59... Kf7 {[%clk 0:00:09.9]} 60.
Kg4 {[%clk 0:00:47.4]} 60... Kg7 {[%clk 0:00:10.2]} 61. Re6 {[%clk 0:00:47.3]}
61... Kf7 {[%clk 0:00:10.4]} 62. Re5 {[%clk 0:00:47.5]} 62... Rc1 {[%clk
0:00:08.5]} 63. Ra5 {[%clk 0:00:47.6]} 63... Rh1 {[%clk 0:00:07.3]} 64. Kg5
{[%clk 0:00:45.8]} 64... Rg1+ {[%clk 0:00:06.9]} 65. Kf5 {[%clk 0:00:45.2]}
65... Rh1 {[%clk 0:00:06.6]} 66. Ra7+ {[%clk 0:00:45]} 66... Kf8 {[%clk
0:00:04.1]} 67. Kg6 {[%clk 0:00:45]} 67... Rg1+ {[%clk 0:00:03.5]} 68. Kf6
{[%clk 0:00:43.5]} 68... Kg8 {[%clk 0:00:03.2]} 69. f5 {[%clk 0:00:42.8]} 69...
Rh1 {[%clk 0:00:01.7]} 70. Ra8+ {[%clk 0:00:37.4]} 70... Kh7 {[%clk 0:00:01]}
71. Kf7 {[%clk 0:00:37.4]} 1-0